fUST/lending_fUST_20250530
["ID","MTS","AMOUNT","RATE_DAILY","PERIOD"]
[363177004,1748613052684,-652.32,0.0002,2]
[363177005,1748613052691,-495.09,0.0002,2]
[363177006,1748613052699,-430.0,0.0002,2]
[363177007,1748613052706,-415.52,0.0002,2]
[363177008,1748613052713,-151.0,0.0002,2]
[363177009,1748613052720,-430.0,0.0002,2]
[363177010,1748613052727,-639.88,0.0002,2]
[363177011,1748613052734,-2025.31,0.0002,2]
[363177012,1748613052743,-4340.74,0.0002,2]
[363177013,1748613052751,-152.622628,0.0002,2]
[363177014,1748613052757,-151.0,0.0002,2]
[363177015,1748613052766,-156.78732905,0.00020049,2]
[363177016,1748613052776,-151.0,0.000201,4]
[363177017,1748613052787,-952.58375257,0.00020107,2]
[363177018,1748613052796,-6190.22188736,0.00020141,2]
[363177019,1748613052805,-466.814978,0.00020187,2]
[363177020,1748613052815,-842.5625,0.0002019,2]
[363177021,1748613052825,-160.0,0.0002019,2]
[363177022,1748613052834,-160.0,0.0002019,2]
[363177023,1748613052843,-212.7380601,0.0002019,2]
[363177024,1748613052852,-229.30959854,0.0002019,2]
[363177025,1748613052861,-160.0,0.0002019,2]
[363177026,1748613052871,-160.0,0.0002019,2]
[363177027,1748613052880,-160.0,0.0002019,2]
[363177028,1748613052891,-12663.11115519,0.0002019,2]
[363177029,1748613052901,-423.39538199,0.0002019,2]
[363177030,1748613052910,-160.0,0.0002019,2]
[363177031,1748613052919,-160.0,0.00020191,2]
[363177032,1748613052928,-151.0,0.000202,4]
[363177033,1748613052937,-319.571,0.00020221,2]
[363177034,1748613052946,-500.0,0.00020244,2]
[363177035,1748613052955,-1500.0,0.00020268,2]
[363177036,1748613052964,-430.0,0.00020273,2]
[363177037,1748613052973,-430.0,0.00020273,2]
[363177038,1748613052981,-430.0,0.00020273,2]
[363177039,1748613052990,-373.4,0.00020273,2]
[363177040,1748613053000,-430.0,0.00020273,2]
[363177041,1748613053009,-430.0,0.00020273,2]
[363177042,1748613053018,-824.46,0.00020273,2]
[363177043,1748613053027,-607.68,0.00020273,2]
[363177044,1748613053036,-430.0,0.00020273,2]
[363177045,1748613053045,-430.0,0.00020273,2]
[363177046,1748613053054,-430.0,0.00020273,2]
[363177047,1748613053063,-652.05,0.00020273,2]
[363177048,1748613053072,-430.0,0.00020273,2]
[363177049,1748613053081,-430.0,0.00020273,2]
[363177050,1748613053090,-430.0,0.00020273,2]
[363177051,1748613053099,-430.0,0.00020273,2]
[363177052,1748613053108,-430.0,0.00020273,2]
[363177053,1748613053117,-993.61,0.00020273,2]
[363177054,1748613053127,-1987.99,0.00020273,2]
[363177055,1748613053136,-430.0,0.00020273,2]
[363177056,1748613053146,-1285.02,0.00020273,2]
[363177057,1748613053157,-430.0,0.00020273,2]
[363177058,1748613053169,-430.0,0.00020273,2]
[363177059,1748613053179,-430.0,0.00020273,2]
[363177060,1748613053189,-430.0,0.00020273,2]
[363177061,1748613053198,-171.0,0.00020273,2]
[363177062,1748613053207,-430.0,0.00020273,2]
[363177063,1748613053216,-430.0,0.00020273,2]
[363177064,1748613053225,-2452.41,0.00020273,2]
[363177065,1748613053234,-219.891703,0.00020273,2]
[363177066,1748613053244,-430.0,0.00020273,2]
[363177067,1748613053253,-824.61,0.00020273,2]
[363177068,1748613053261,-739.65,0.00020273,2]
[363177069,1748613053271,-430.0,0.00020273,2]
[363177070,1748613053280,-4093.66,0.00020273,2]
[363177071,1748613053289,-1699.19,0.00020273,2]
[363177072,1748613053299,-1257.12,0.00020273,2]
[363177073,1748613053308,-485.33,0.00020273,2]
[363177074,1748613053318,-5783.14,0.00020273,2]
[363177075,1748613053327,-430.0,0.00020273,2]
[363177076,1748613053336,-1220.08,0.00020273,2]
[363177077,1748613053346,-893.27,0.00020273,2]
[363177078,1748613053356,-785.41,0.00020273,2]
[363177079,1748613053366,-533.82,0.00020273,2]
[363177080,1748613053375,-632.91,0.00020273,2]
[363177081,1748613053384,-683.66,0.00020273,2]
[363177082,1748613053393,-430.0,0.00020273,2]
[363177083,1748613053402,-5539.24,0.00020273,2]
[363177084,1748613053412,-571.19,0.00020273,2]
[363177085,1748613053422,-798.25,0.00020273,2]
[363177086,1748613053431,-4646.8,0.00020273,2]
[363177087,1748613053441,-430.0,0.00020273,2]
[363177088,1748613053450,-628.43,0.00020273,2]
[363177089,1748613053459,-430.0,0.00020273,2]
[363177090,1748613053467,-641.7,0.00020273,2]
[363177091,1748613053476,-972.06,0.00020273,2]
[363177092,1748613053486,-1112.77,0.00020273,2]
[363177093,1748613053495,-430.0,0.00020273,2]
[363177094,1748613053504,-3608.65,0.00020273,2]
[363177095,1748613053513,-398.895474,0.00020273,2]
[363177096,1748613053523,-1361.21,0.00020273,2]
[363177097,1748613053532,-430.0,0.00020273,2]
[363177098,1748613053671,-398.895474,0.00020273,2]
[363177099,1748613053689,-430.0,0.00020273,2]
[363177100,1748613053703,-430.0,0.00020273,2]
[363177101,1748613053713,-2177.71,0.00020273,2]
[363177102,1748613053722,-3492.68,0.00020273,2]
[363177103,1748613053732,-1567.97,0.00020273,2]
[363177104,1748613053744,-430.0,0.00020273,2]
[363177105,1748613053754,-603.33,0.00020273,2]
[363177106,1748613053765,-918.7,0.00020273,2]
[363177107,1748613053774,-151.0,0.00020273,2]
[363177108,1748613053785,-479.76,0.00020273,2]
[363177109,1748613053794,-151.0,0.00020273,2]
[363177110,1748613053804,-430.0,0.00020273,2]
[363177111,1748613053813,-441.1,0.00020273,2]
[363177112,1748613053823,-933.36,0.00020273,2]
[363177113,1748613053832,-1127.29,0.00020273,2]
[363177114,1748613053841,-1627.33,0.00020273,2]
[363177115,1748613053851,-430.0,0.00020273,2]
[363177116,1748613053863,-744.21,0.00020273,2]
[363177117,1748613053872,-607.75,0.00020273,2]
[363177118,1748613053881,-151.0,0.00020273,2]
[363177119,1748613053890,-430.0,0.00020273,2]
[363177120,1748613053899,-430.0,0.00020273,2]
[363177121,1748613053908,-2375.25,0.00020273,2]
[363177122,1748613053918,-430.0,0.00020273,2]
[363177123,1748613053930,-341.01728997,0.00020273,2]
[363177124,1748613053939,-2994.36,0.00020273,2]
[363177125,1748613053949,-1016.84,0.00020273,2]
[363177126,1748613053959,-2410.19,0.00020273,2]
[363177127,1748613053968,-480.64,0.00020273,2]
[363177128,1748613053977,-652.32,0.00020273,2]
[363177129,1748613053987,-495.09,0.00020273,2]
[363177130,1748613053996,-430.0,0.00020273,2]
[363177131,1748613054006,-151.0,0.00020273,2]
[363177132,1748613054016,-430.0,0.00020273,2]
[363177133,1748613054025,-639.88,0.00020273,2]
[363177134,1748613054035,-2025.31,0.00020273,2]
[363177135,1748613054045,-4340.74,0.00020273,2]
[363177136,1748613054054,-151.0,0.00020273,2]
[363177137,1748613054064,-166.0,0.00020274,2]
[363177138,1748613054074,-5000.0,0.00020293,2]
[363177139,1748613054084,-151.0,0.000203,3]
[363177140,1748613054093,-168.21129388,0.000203,2]
[363177141,1748613054103,-166.0,0.00020326,2]
[363177142,1748613054112,-720.0,0.00020326,2]
[363177143,1748613054122,-166.0,0.00020326,2]
[363177144,1748613054131,-720.0,0.00020326,2]
[363177145,1748613054141,-166.0,0.00020326,2]
[363177146,1748613054150,-203.27284394,0.00020326,2]
[363177147,1748613054160,-720.0,0.00020326,2]
[363177148,1748613054172,-166.0,0.00020326,2]
[363177149,1748613054182,-720.0,0.00020326,2]
[363177150,1748613054191,-166.0,0.00020326,2]
[363177151,1748613054201,-166.0,0.00020326,2]
[363177152,1748613054211,-166.0,0.00020326,2]
[363177153,1748613054221,-720.0,0.00020326,2]
[363177154,1748613054231,-166.0,0.00020326,2]
[363177155,1748613054241,-166.0,0.00020326,2]
[363177156,1748613054251,-720.0,0.00020326,2]
[363177157,1748613054260,-166.0,0.00020326,2]
[363177158,1748613054270,-166.0,0.00020326,2]
[363177159,1748613054279,-720.0,0.00020326,2]
[363177160,1748613054289,-166.0,0.00020326,2]
[363177161,1748613054299,-720.0,0.00020326,2]
[363177162,1748613054308,-166.0,0.00020326,2]
[363177163,1748613054318,-166.0,0.00020326,2]
[363177164,1748613054328,-720.0,0.00020326,2]
[363177165,1748613054338,-172.0,0.00020326,2]
[363177166,1748613054347,-166.0,0.00020326,2]
[363177167,1748613054357,-720.0,0.00020326,2]
[363177168,1748613054367,-153.0,0.00020326,2]
[363177169,1748613054377,-166.0,0.00020326,2]
[363177170,1748613054387,-720.0,0.00020326,2]
[363177171,1748613054396,-153.0,0.00020326,2]
[363177172,1748613054405,-172.0,0.00020326,2]
[363177173,1748613054415,-720.0,0.00020326,2]
[363177174,1748613054426,-153.0,0.00020326,2]
[363177175,1748613054436,-720.0,0.00020326,2]
[363177176,1748613054446,-153.0,0.00020326,2]
[363177177,1748613054455,-720.0,0.00020326,2]
[363177178,1748613054465,-153.0,0.00020326,2]
[363177179,1748613054475,-200.32586624,0.00020326,2]
[363177180,1748613054486,-720.0,0.00020326,2]
[363177181,1748613054495,-153.0,0.00020326,2]
[363177182,1748613054504,-153.0,0.00020326,2]
[363177183,1748613054514,-153.0,0.00020326,2]
[363177184,1748613054524,-153.0,0.00020326,2]
[363177185,1748613054533,-153.0,0.00020326,2]
[363177186,1748613054542,-720.0,0.00020326,2]
[363177187,1748613054552,-720.0,0.00020326,2]
[363177188,1748613054561,-720.0,0.00020326,2]
[363177189,1748613054571,-720.0,0.00020326,2]
[363177190,1748613054580,-720.0,0.00020326,2]
[363177191,1748613054590,-720.0,0.00020326,2]
[363177192,1748613054600,-316.0,0.00020326,2]
[363177193,1748613054610,-720.0,0.00020326,2]
[363177194,1748613054620,-316.0,0.00020326,2]
[363177195,1748613054630,-720.0,0.00020326,2]
[363177196,1748613054640,-316.0,0.00020326,2]
[363177197,1748613054650,-720.0,0.00020326,2]
[363177198,1748613054661,-316.0,0.00020326,2]
[363177199,1748613054675,-720.0,0.00020326,2]
[363177200,1748613054686,-316.0,0.00020326,2]
[363177201,1748613054696,-720.0,0.00020326,2]
[363177202,1748613054706,-316.0,0.00020326,2]
[363177203,1748613054716,-720.0,0.00020326,2]
[363177204,1748613054726,-720.0,0.00020326,2]
[363177205,1748613054735,-316.0,0.00020326,2]
[363177206,1748613054748,-720.0,0.00020326,2]
[363177207,1748613054758,-316.0,0.00020326,2]
[363177208,1748613054768,-720.0,0.00020326,2]
[363177209,1748613054777,-316.0,0.00020326,2]
[363177210,1748613054788,-720.0,0.00020326,2]
[363177211,1748613054798,-316.0,0.00020326,2]
[363177212,1748613054808,-720.0,0.00020326,2]
[363177213,1748613054818,-316.0,0.00020326,2]
[363177214,1748613054828,-316.0,0.00020326,2]
[363177215,1748613054838,-720.0,0.00020326,2]
[363177216,1748613054848,-720.0,0.00020326,2]
[363177217,1748613054857,-316.0,0.00020326,2]
[363177218,1748613054867,-316.0,0.00020326,2]
[363177219,1748613054876,-720.0,0.00020326,2]
[363177220,1748613054886,-316.0,0.00020326,2]
[363177221,1748613054895,-720.0,0.00020326,2]
[363177222,1748613054905,-316.0,0.00020326,2]
[363177223,1748613054916,-720.0,0.00020326,2]
[363177224,1748613054928,-316.0,0.00020326,2]
[363177225,1748613054937,-720.0,0.00020326,2]
[363177226,1748613054946,-720.0,0.00020326,2]
[363177227,1748613054956,-316.0,0.00020326,2]
[363177228,1748613054965,-720.0,0.00020326,2]
[363177229,1748613054974,-316.0,0.00020326,2]
[363177230,1748613054983,-720.0,0.00020326,2]
[363177231,1748613054992,-720.0,0.00020326,2]
[363177232,1748613055002,-720.0,0.00020326,2]
[363177233,1748613055011,-720.0,0.00020326,2]
[363177234,1748613055019,-316.0,0.00020326,2]
[363177235,1748613055029,-720.0,0.00020326,2]
[363177236,1748613055038,-720.0,0.00020326,2]
[363177237,1748613055047,-316.0,0.00020326,2]
[363177238,1748613055057,-720.0,0.00020326,2]
[363177239,1748613055067,-316.0,0.00020326,2]
[363177240,1748613055076,-316.0,0.00020326,2]
[363177241,1748613055085,-720.0,0.00020326,2]
[363177242,1748613055094,-316.0,0.00020326,2]
[363177243,1748613055104,-720.0,0.00020326,2]
[363177244,1748613055113,-316.0,0.00020326,2]
[363177245,1748613055123,-720.0,0.00020326,2]
[363177246,1748613055134,-316.0,0.00020326,2]
[363177247,1748613055143,-316.0,0.00020326,2]
[363177248,1748613055152,-316.0,0.00020326,2]
[363177249,1748613055161,-316.0,0.00020326,2]
[363177250,1748613055171,-316.0,0.00020326,2]
[363177251,1748613055184,-316.0,0.00020326,2]
[363177252,1748613055194,-316.0,0.00020326,2]
[363177253,1748613055204,-316.0,0.00020326,2]
[363177254,1748613055214,-316.0,0.00020326,2]
[363177255,1748613055224,-316.0,0.00020326,2]
[363177256,1748613055234,-316.0,0.00020326,2]
[363177257,1748613055244,-316.0,0.00020326,2]
[363177258,1748613055254,-316.0,0.00020326,2]
[363177259,1748613055263,-316.0,0.00020326,2]
[363177260,1748613055274,-316.0,0.00020326,2]
[363177261,1748613055285,-316.0,0.00020326,2]
[363177262,1748613055295,-720.0,0.00020326,2]
[363177263,1748613055305,-316.0,0.00020326,2]
[363177264,1748613055315,-720.0,0.00020326,2]
[363177265,1748613055325,-316.0,0.00020326,2]
[363177266,1748613055335,-720.0,0.00020326,2]
[363177267,1748613055346,-316.0,0.00020326,2]
[363177268,1748613055356,-720.0,0.00020326,2]
[363177269,1748613055366,-316.0,0.00020326,2]
[363177270,1748613055376,-720.0,0.00020326,2]
[363177271,1748613055387,-316.0,0.00020326,2]
[363177272,1748613055398,-720.0,0.00020326,2]
[363177273,1748613055407,-316.0,0.00020326,2]
[363177274,1748613055417,-720.0,0.00020326,2]
[363177275,1748613055432,-316.0,0.00020326,2]
[363177276,1748613055441,-720.0,0.00020326,2]
[363177277,1748613055452,-316.0,0.00020326,2]
[363177278,1748613055461,-720.0,0.00020326,2]
[363177279,1748613055472,-316.0,0.00020326,2]
[363177280,1748613055482,-720.0,0.00020326,2]
[363177281,1748613055492,-720.0,0.00020326,2]
[363177282,1748613055502,-316.0,0.00020326,2]
[363177283,1748613055512,-720.0,0.00020326,2]
[363177284,1748613055522,-316.0,0.00020326,2]
[363177285,1748613055532,-720.0,0.00020326,2]
[363177286,1748613055541,-316.0,0.00020326,2]
[363177287,1748613055551,-720.0,0.00020326,2]
[363177288,1748613055561,-316.0,0.00020326,2]
[363177289,1748613055571,-720.0,0.00020326,2]
[363177290,1748613055580,-316.0,0.00020326,2]
[363177291,1748613055621,-720.0,0.00020326,2]
[363177292,1748613055631,-316.0,0.00020326,2]
[363177293,1748613055641,-720.0,0.00020326,2]
[363177294,1748613055651,-316.0,0.00020326,2]
[363177295,1748613055661,-720.0,0.00020326,2]
[363177296,1748613055672,-316.0,0.00020326,2]
[363177297,1748613055681,-316.0,0.00020326,2]
[363177298,1748613055691,-720.0,0.00020326,2]
[363177299,1748613055701,-316.0,0.00020326,2]
[363177300,1748613055710,-420.81280257,0.00020326,2]
[363177301,1748613055720,-316.0,0.00020326,2]
[363177302,1748613055730,-316.0,0.00020326,2]
[363177303,1748613055739,-316.0,0.00020326,2]
[363177304,1748613055751,-316.0,0.00020326,2]
[363177305,1748613055761,-316.0,0.00020326,2]
[363177306,1748613055771,-316.0,0.00020326,2]
[363177307,1748613055780,-316.0,0.00020326,2]
[363177308,1748613055791,-316.0,0.00020326,2]
[363177309,1748613055800,-316.0,0.00020326,2]
[363177310,1748613055810,-316.0,0.00020326,2]
[363177311,1748613055819,-316.0,0.00020326,2]
[363177312,1748613055831,-316.0,0.00020326,2]
[363177313,1748613055841,-316.0,0.00020326,2]
[363177314,1748613055851,-316.0,0.00020326,2]
[363177315,1748613055860,-316.0,0.00020326,2]
[363177316,1748613055869,-316.0,0.00020326,2]
[363177317,1748613055878,-316.0,0.00020326,2]
[363177318,1748613055887,-316.0,0.00020326,2]
[363177319,1748613055897,-316.0,0.00020326,2]
[363177320,1748613055907,-316.0,0.00020326,2]
[363177321,1748613055916,-316.0,0.00020326,2]
[363177322,1748613055928,-316.0,0.00020326,2]
[363177323,1748613055937,-316.0,0.00020326,2]
[363177324,1748613055946,-316.0,0.00020326,2]
[363177325,1748613055956,-316.0,0.00020326,2]
[363177326,1748613055965,-316.0,0.00020326,2]
[363177327,1748613055975,-316.0,0.00020326,2]
[363177328,1748613055984,-316.0,0.00020326,2]
[363177329,1748613055994,-316.0,0.00020326,2]
[363177330,1748613056003,-316.0,0.00020326,2]
[363177331,1748613056016,-316.0,0.00020326,2]
[363177332,1748613056026,-316.0,0.00020326,2]
[363177333,1748613056035,-316.0,0.00020326,2]
[363177334,1748613056045,-344.82941414,0.00020326,2]
[363177335,1748613056055,-168.0,0.00020326,2]
[363177336,1748613056065,-168.0,0.00020326,2]
[363177337,1748613056074,-168.0,0.00020326,2]
[363177338,1748613056084,-168.0,0.00020326,2]
[363177339,1748613056094,-168.0,0.00020326,2]
[363177340,1748613056103,-168.0,0.00020326,2]
[363177341,1748613056112,-168.0,0.00020326,2]
[363177342,1748613056121,-172.32768208,0.00020326,2]
[363177343,1748613056131,-184.535282,0.00020326,2]
[363177344,1748613056140,-184.535282,0.00020326,2]
[363177345,1748613056150,-151.0,0.00020326,2]
[363177346,1748613056159,-160.0,0.00020348,3]
[363177347,1748613056169,-160.0,0.00020348,3]
[363177348,1748613056182,-842.5625,0.00020348,3]
[363177349,1748613056191,-212.7380601,0.00020348,3]
[363177350,1748613056201,-12663.11115519,0.00020348,3]
[363177351,1748613056210,-6190.22188736,0.00020348,3]
[363177352,1748613056221,-500.0,0.00020369,2]
[363177353,1748613056231,-520.30282035,0.00020369,2]
[363177354,1748613056240,-500.0,0.000204,2]
[363177355,1748613056250,-500.0,0.000204,2]
[363177356,1748613056259,-500.0,0.000204,2]
[363177357,1748613056269,-151.0,0.000204,4]
[363177358,1748613056279,-250.0,0.00020428,2]
[363177359,1748613056289,-637.0,0.000205,2]
[363177360,1748613056299,-535.19813433,0.00020521,2]
[363177361,1748613056308,-1000.0,0.00020521,2]
[363177362,1748613056318,-510.48768727,0.00020521,2]
[363177363,1748613056328,-1000.0,0.00020521,2]
[363177364,1748613056337,-1073.09247553,0.00020521,2]
[363177365,1748613056347,-1000.0,0.00020521,2]
[363177366,1748613056356,-1000.0,0.00020521,2]
[363177367,1748613056366,-507.26848738,0.00020521,2]
[363177368,1748613056375,-1000.0,0.00020521,2]
[363177369,1748613056384,-1000.0,0.00020521,2]
[363177370,1748613056394,-1000.0,0.00020521,2]
[363177371,1748613056404,-1000.0,0.00020521,2]
[363177372,1748613056413,-1000.0,0.00020521,2]
[363177373,1748613056426,-1000.0,0.00020521,2]
[363177374,1748613056435,-1000.0,0.00020521,2]
[363177375,1748613056444,-1000.0,0.00020521,2]
[363177376,1748613056454,-1000.0,0.00020521,2]
[363177377,1748613056464,-1000.0,0.00020521,2]
[363177378,1748613056473,-1000.0,0.00020521,2]
[363177379,1748613056481,-1000.0,0.00020521,2]
[363177380,1748613056490,-551.42715788,0.00020521,2]
[363177381,1748613056499,-1000.0,0.00020521,2]
[363177382,1748613056508,-1000.0,0.00020521,2]
[363177383,1748613056518,-1000.0,0.00020521,2]
[363177384,1748613056527,-315.33241036,0.00020521,2]
[363177385,1748613056536,-1000.0,0.00020521,2]
[363177386,1748613056545,-1000.0,0.00020521,2]
[363177387,1748613056554,-460.7295299,0.00020521,2]
[363177388,1748613056563,-686.39740406,0.00020521,2]
[363177389,1748613056573,-599.98096962,0.00020521,2]
[363177390,1748613056582,-1000.0,0.00020521,2]
[363177391,1748613056592,-1000.0,0.00020521,2]
[363177392,1748613056601,-508.06183039,0.00020521,2]
[363177393,1748613056610,-952.58375257,0.00020538,2]
[363177394,1748613056621,-160.0,0.00020546,2]
[363177395,1748613056631,-151.0,0.00020547,2]
[363177396,1748613056640,-151.0,0.00020547,2]
[363177397,1748613056650,-151.0,0.00020547,2]
[363177398,1748613056659,-151.0,0.00020547,2]
[363177399,1748613056668,-151.0,0.00020547,2]
[363177400,1748613056679,-230.272968,0.00020547,2]
[363177401,1748613056688,-230.272968,0.00020547,2]
[363177402,1748613056697,-160.75014317,0.00020547,2]
[363177403,1748613056707,-151.0,0.00020547,2]
[363177404,1748613056717,-151.0,0.00020547,2]
[363177405,1748613056726,-151.0,0.00020547,2]
[363177406,1748613056736,-151.0,0.00020547,2]
[363177407,1748613056746,-151.0,0.00020547,2]
[363177408,1748613056757,-151.0,0.00020547,2]
[363177409,1748613056766,-151.0,0.00020547,2]
[363177410,1748613056775,-151.0,0.00020547,2]
[363177411,1748613056786,-151.0,0.00020547,2]
[363177412,1748613056796,-227.850508,0.00020547,2]
[363177413,1748613056806,-227.850508,0.00020547,2]
[363177414,1748613056816,-255.182464,0.00020547,2]
[363177415,1748613056827,-556.641424,0.00020547,2]
[363177416,1748613056837,-151.0,0.00020547,2]
[363177417,1748613056846,-151.0,0.00020547,2]
[363177418,1748613056856,-151.0,0.00020547,2]
[363177419,1748613056866,-170.247219,0.00020547,2]
[363177420,1748613056876,-430.0,0.00020547,2]
[363177421,1748613056886,-430.0,0.00020547,2]
[363177422,1748613056896,-430.0,0.00020547,2]
[363177423,1748613056906,-155.51216,0.00020547,2]
[363177424,1748613056916,-155.51216,0.00020547,2]
[363177425,1748613056926,-430.0,0.00020547,2]
[363177426,1748613056936,-151.0,0.00020547,2]
[363177427,1748613056946,-430.0,0.00020547,2]
[363177428,1748613056955,-226.470442,0.00020547,2]
[363177429,1748613056965,-226.470442,0.00020547,2]
[363177430,1748613056975,-824.46,0.00020547,2]
[363177431,1748613056985,-607.68,0.00020547,2]
[363177432,1748613056994,-430.0,0.00020547,2]
[363177433,1748613057004,-430.0,0.00020547,2]
[363177434,1748613057014,-544.59334353,0.00020547,2]
[363177435,1748613057025,-652.05,0.00020547,2]
[363177436,1748613057034,-430.0,0.00020547,2]
[363177437,1748613057045,-430.0,0.00020547,2]
[363177438,1748613057055,-430.0,0.00020547,2]
[363177439,1748613057065,-430.0,0.00020547,2]
[363177440,1748613057075,-430.0,0.00020547,2]
[363177441,1748613057085,-993.61,0.00020547,2]
[363177442,1748613057095,-1987.99,0.00020547,2]
[363177443,1748613057105,-465.82,0.00020547,2]
[363177444,1748613057115,-1285.02,0.00020547,2]
[363177445,1748613057125,-430.0,0.00020547,2]
[363177446,1748613057134,-430.0,0.00020547,2]
[363177447,1748613057144,-430.0,0.00020547,2]
[363177448,1748613057154,-430.0,0.00020547,2]
[363177449,1748613057164,-430.0,0.00020547,2]
[363177450,1748613057177,-430.0,0.00020547,2]
[363177451,1748613057186,-2452.41,0.00020547,2]
[363177452,1748613057198,-430.0,0.00020547,2]
[363177453,1748613057208,-824.61,0.00020547,2]
[363177454,1748613057218,-739.65,0.00020547,2]
[363177455,1748613057228,-430.0,0.00020547,2]
[363177456,1748613057238,-4093.66,0.00020547,2]
[363177457,1748613057247,-1699.19,0.00020547,2]
[363177458,1748613057257,-1257.12,0.00020547,2]
[363177459,1748613057267,-485.33,0.00020547,2]
[363177460,1748613057277,-5783.14,0.00020547,2]
[363177461,1748613057286,-430.0,0.00020547,2]
[363177462,1748613057295,-1220.08,0.00020547,2]
[363177463,1748613057304,-893.27,0.00020547,2]
[363177464,1748613057314,-785.41,0.00020547,2]
[363177465,1748613057323,-533.82,0.00020547,2]
[363177466,1748613057333,-632.91,0.00020547,2]
[363177467,1748613057342,-683.66,0.00020547,2]
[363177468,1748613057352,-430.0,0.00020547,2]
[363177469,1748613057362,-5539.24,0.00020547,2]
[363177470,1748613057372,-571.19,0.00020547,2]
[363177471,1748613057382,-798.25,0.00020547,2]
[363177472,1748613057392,-4646.8,0.00020547,2]
[363177473,1748613057402,-430.0,0.00020547,2]
[363177474,1748613057412,-628.43,0.00020547,2]
[363177475,1748613057422,-430.0,0.00020547,2]
[363177476,1748613057435,-641.7,0.00020547,2]
[363177477,1748613057445,-972.06,0.00020547,2]
[363177478,1748613057455,-1112.77,0.00020547,2]
[363177479,1748613057464,-430.0,0.00020547,2]
[363177480,1748613057473,-3608.65,0.00020547,2]
[363177481,1748613057483,-398.895474,0.00020547,2]
[363177482,1748613057492,-1361.21,0.00020547,2]
[363177483,1748613057501,-430.0,0.00020547,2]
[363177484,1748613057511,-398.895474,0.00020547,2]
[363177485,1748613057520,-430.0,0.00020547,2]
[363177486,1748613057530,-430.0,0.00020547,2]
[363177487,1748613057539,-2177.71,0.00020547,2]
[363177488,1748613057548,-3492.68,0.00020547,2]
[363177489,1748613057557,-1567.97,0.00020547,2]
[363177490,1748613057567,-430.0,0.00020547,2]
[363177491,1748613057577,-603.33,0.00020547,2]
[363177492,1748613057586,-918.7,0.00020547,2]
[363177493,1748613057596,-151.0,0.00020547,2]
[363177494,1748613057606,-479.76,0.00020547,2]
[363177495,1748613057615,-151.0,0.00020547,2]
[363177496,1748613057624,-430.0,0.00020547,2]
[363177497,1748613057633,-441.1,0.00020547,2]
[363177498,1748613057643,-933.36,0.00020547,2]
[363177499,1748613057652,-1127.29,0.00020547,2]
[363177500,1748613057662,-1627.33,0.00020547,2]
[363177501,1748613057671,-430.0,0.00020547,2]
[363177502,1748613057684,-744.21,0.00020547,2]
[363177503,1748613057693,-607.75,0.00020547,2]